bitfinex/quotes_BTCUSD_20250614
["timestamp","ask_amount","ask_price","bid_price","bid_amount"]
[1749891578398,1.40683596,105190.0,105180.0,0.04219143]
[1749891578748,1.40683596,105190.0,105180.0,0.04219135]
[1749891578986,1.40683596,105190.0,105180.0,0.03552877]
[1749891579402,1.40683596,105190.0,105180.0,0.03549427]
[1749891579814,1.40683596,105190.0,105180.0,0.01776187]
[1749891580029,1.40683596,105190.0,105180.0,0.03549431]
[1749891580243,1.40683596,105190.0,105180.0,0.01776187]
[1749891580462,1.40683596,105190.0,105180.0,0.03549416]
[1749891580683,1.31068674,105190.0,105180.0,0.03549416]
[1749891580901,1.31068674,105190.0,105180.0,0.01776187]
[1749891581111,1.31068674,105190.0,105180.0,0.03549413]
[1749891582561,1.31068674,105190.0,105180.0,0.03549376]
[1749891583314,1.40683596,105190.0,105180.0,0.03549376]
[1749891583904,1.40683596,105190.0,105180.0,0.03549353]
[1749891584119,1.31068674,105190.0,105180.0,0.03549341]
[1749891584324,1.31068674,105190.0,105180.0,0.0354928]
[1749891584531,1.31068674,105190.0,105180.0,0.01776187]
[1749891584732,1.31068674,105190.0,105180.0,0.03549274]
[1749891585167,1.31068674,105190.0,105180.0,0.01776187]
[1749891585549,1.31068674,105190.0,105180.0,0.03549274]
[1749891585804,1.31068674,105190.0,105180.0,0.01776187]
[1749891586006,1.31068674,105190.0,105180.0,0.03549274]
[1749891586183,1.31068674,105190.0,105180.0,0.01776187]
[1749891586420,1.31068674,105190.0,105180.0,0.05409274]
[1749891587278,1.40683596,105190.0,105180.0,0.05409274]
[1749891587732,0.85221161,105190.0,105180.0,0.07369274]
[1749891587960,1.40683596,105190.0,105180.0,0.0736921]
[1749891588172,1.40683596,105190.0,105180.0,0.05596187]
[1749891588581,1.40683596,105190.0,105180.0,0.07369118]
[1749891589047,1.31068674,105190.0,105180.0,0.07369118]
[1749891589473,1.31068674,105190.0,105180.0,0.07369117]
[1749891590301,1.31068674,105190.0,105180.0,0.05596187]
[1749891590495,1.31068674,105190.0,105180.0,0.07369117]
[1749891591145,1.31068674,105190.0,105180.0,0.05596187]
[1749891591603,0.75606239,105190.0,105180.0,0.07369117]
[1749891591844,0.75606239,105190.0,105180.0,0.05596187]
[1749891592061,1.31068674,105190.0,105180.0,0.07369118]
[1749891592264,1.31068674,105190.0,105180.0,0.05596187]
[1749891592456,1.31068674,105190.0,105180.0,0.07369115]
[1749891592611,1.31068674,105190.0,105180.0,0.07369116]
[1749891592813,1.31068674,105190.0,105180.0,0.05596187]
[1749891593812,1.31068674,105190.0,105180.0,0.07369113]
[1749891594472,1.31068674,105190.0,105180.0,0.08035253]
[1749891594686,1.31068674,105190.0,105180.0,0.05596187]
[1749891594898,1.31068674,105190.0,105180.0,0.08038702]
[1749891595080,1.31068674,105190.0,105180.0,0.07372562]
[1749891595310,1.30984674,105190.0,105180.0,0.08038702]
[1749891595795,1.30984674,105190.0,105180.0,0.08038674]
[1749891595998,1.30984674,105190.0,105180.0,0.08038665]
[1749891596665,1.30984674,105190.0,105180.0,0.06262317]
[1749891596869,1.30984674,105190.0,105180.0,0.07372535]
[1749891597243,1.30984674,105190.0,105180.0,0.08038665]
[1749891597445,1.30984674,105190.0,105180.0,0.0626232]
[1749891597650,1.30984674,105190.0,105180.0,0.08038795]
[1749891597980,1.30984674,105190.0,105180.0,0.07372656]
[1749891598225,1.30984674,105190.0,105180.0,0.0737266]
[1749891598435,1.30984674,105190.0,105180.0,0.08038831]
[1749891598615,1.30984674,105190.0,105180.0,0.08038827]
[1749891598825,1.30984674,105190.0,105180.0,0.07372653]
[1749891599021,1.30984674,105190.0,105180.0,0.08038828]
[1749891599426,1.30984674,105190.0,105180.0,0.08038827]
[1749891599631,1.11724674,105190.0,105180.0,0.26387674]
[1749891599830,1.30030032,105190.0,105180.0,0.05596187]
[1749891600018,1.30030032,105190.0,105180.0,0.28004479]
[1749891600370,1.30030032,105190.0,105180.0,0.2556195]
[1749891600659,0.36382383,105190.0,105180.0,0.34744023]
[1749891600913,0.55257257,105190.0,105180.0,0.35694529]
[1749891601095,1.30683494,105190.0,105180.0,0.35694474]
[1749891601310,1.1167028,105190.0,105180.0,0.35028412]
[1749891601495,1.31634154,105190.0,105180.0,0.35028423]
[1749891601775,1.1262094,105190.0,105180.0,0.30190235]
[1749891601986,1.1167028,105190.0,105180.0,0.30856296]
[1749891602196,1.1167028,105190.0,105180.0,0.30856298]
[1749891602378,1.32964347,105190.0,105180.0,0.2908013]
[1749891602591,1.33914998,105190.0,105180.0,0.29080133]
[1749891602802,1.33914998,105190.0,105180.0,0.28955025]
[1749891603016,1.33914998,105190.0,105180.0,0.29905712]
[1749891603237,1.33914998,105190.0,105180.0,0.28129469]
[1749891603461,1.33914998,105190.0,105180.0,0.27463387]
[1749891603683,1.33914998,105190.0,105180.0,0.29905688]
[1749891603901,1.3296441,105190.0,105180.0,0.29905686]
[1749891604118,1.3296441,105190.0,105180.0,0.28129475]
[1749891604364,1.3296441,105190.0,105180.0,0.29905712]
[1749891604623,1.3296441,105190.0,105180.0,0.29905713]
[1749891605038,1.3296441,105190.0,105180.0,0.29905717]
[1749891605249,1.3296441,105190.0,105180.0,0.27463387]
[1749891605460,1.3296441,105190.0,105180.0,0.29905718]
[1749891606132,1.3296441,105190.0,105180.0,0.29239642]
[1749891606319,1.3296441,105190.0,105180.0,0.06262283]
[1749891606569,1.31063153,105190.0,105180.0,0.25561959]
[1749891606786,1.31063153,105190.0,105180.0,0.28004305]
[1749891607005,1.31063153,105190.0,105180.0,0.2895505]
[1749891607224,1.31063153,105190.0,105180.0,0.28955058]
[1749891607437,1.31063153,105190.0,105180.0,0.26512701]
[1749891607656,1.31063153,105190.0,105180.0,0.28955058]
[1749891607865,1.31063153,105190.0,105180.0,0.26512701]
[1749891608077,1.31063153,105190.0,105180.0,0.28955058]
[1749891608307,1.31063153,105190.0,105180.0,0.28288961]
[1749891608512,1.31063153,105190.0,105180.0,0.27178798]
[1749891608719,1.31063153,105190.0,105180.0,0.28288961]
[1749891608935,1.31063153,105190.0,105180.0,0.28288988]
[1749891609159,1.30112502,105190.0,105180.0,0.27338246]
[1749891609410,0.74650067,105190.0,105180.0,0.08038672]
[1749891609627,1.30112502,105190.0,105180.0,0.28004444]
[1749891609847,1.30112502,105190.0,105180.0,0.08989455]
[1749891610065,1.30112502,105190.0,105180.0,0.08038704]
[1749891610499,1.30112502,105190.0,105180.0,0.06262328]
[1749891610711,1.30112502,105190.0,105180.0,0.08038704]
[1749891610927,1.30112502,105190.0,105180.0,0.26387584]
[1749891611137,1.30112502,105190.0,105180.0,0.08038705]
[1749891611357,1.30112502,105190.0,105180.0,0.05596187]
[1749891611572,1.30112502,105190.0,105180.0,0.08038705]
[1749891611786,1.30112502,105190.0,105180.0,0.08038669]
[1749891612209,1.30112502,105190.0,105180.0,0.2705369]
[1749891612439,1.30112502,105190.0,105180.0,0.25277339]
[1749891612651,1.30112502,105190.0,105180.0,0.25561959]
[1749891612859,1.30112502,105190.0,105180.0,0.28004441]
[1749891613070,1.30112502,105190.0,105180.0,0.2622809]
[1749891613279,1.30112502,105190.0,105180.0,0.28004441]
[1749891613509,1.30112502,105190.0,105180.0,0.2622809]
[1749891613723,1.30112502,105190.0,105180.0,0.08989422]
[1749891613936,1.30112502,105190.0,105180.0,0.28004443]
[1749891614581,1.30112502,105190.0,105180.0,0.07372539]
[1749891614800,1.30112502,105190.0,105180.0,0.27053692]
[1749891615008,1.30112502,105190.0,105180.0,0.27338312]
[1749891615222,1.30112502,105190.0,105180.0,0.28004443]
[1749891615629,1.30112502,105190.0,105180.0,0.27338312]
[1749891615841,1.30112502,105190.0,105180.0,0.26228091]
[1749891616053,1.30112502,105190.0,105180.0,0.25561959]
[1749891616270,1.30112502,105190.0,105180.0,0.26228]
[1749891616491,1.30112502,105190.0,105180.0,0.28004117]
[1749891616717,1.30112502,105190.0,105180.0,0.28004102]
[1749891616982,1.30112502,105190.0,105180.0,0.27338063]
[1749891617207,1.30112502,105190.0,105180.0,0.25561959]
[1749891617435,1.30112502,105190.0,105180.0,0.26227998]
[1749891617646,1.30112502,105190.0,105180.0,0.28004102]
[1749891617866,1.30112502,105190.0,105180.0,0.0803833]
[1749891618076,1.30112502,105190.0,105180.0,0.27052215]
[1749891618876,1.30112502,105190.0,105180.0,0.28002966]
[1749891619084,1.30112502,105190.0,105180.0,0.28002507]
[1749891619297,1.30112502,105190.0,105180.0,0.27178303]
[1749891619741,1.30112502,105190.0,105180.0,0.28953244]
[1749891619960,0.74650067,105190.0,105180.0,0.34079655]
[1749891620170,1.28782309,105190.0,105180.0,0.34079674]
[1749891620384,0.93478435,105190.0,105180.0,0.37470831]
[1749891620588,0.97280949,105190.0,105180.0,0.38421492]
[1749891620835,0.97280949,105190.0,105180.0,0.31805253]
[1749891621037,1.17244823,105190.0,105180.0,0.31139677]
[1749891621251,0.41818514,105190.0,105180.0,0.31805256]
[1749891621472,0.41818514,105190.0,105180.0,0.31139677]
[1749891621473,1.17244823,105190.0,105180.0,0.31139677]
[1749891621688,1.19525919,105190.0,105180.0,0.31805263]
[1749891621922,1.19525919,105190.0,105180.0,0.31805296]
[1749891622142,1.19525919,105190.0,105180.0,0.31805305]
[1749891622362,1.19525919,105190.0,105180.0,0.31805306]
[1749891622586,1.00512705,105190.0,105180.0,0.31805305]
[1749891622795,1.19525919,105190.0,105180.0,0.31805323]
[1749891623001,1.19525919,105190.0,105180.0,0.29364779]
[1749891623228,1.19525919,105190.0,105180.0,0.30030368]
[1749891623461,1.19525919,105190.0,105180.0,0.31805382]
[1749891623688,1.19525919,105190.0,105180.0,0.30030407]
[1749891623898,1.19525919,105190.0,105180.0,0.31805422]
[1749891624113,1.19525919,105190.0,105180.0,0.31805466]
[1749891624330,1.19525919,105190.0,105180.0,0.31805665]
[1749891624541,1.19525919,105190.0,105180.0,0.31805702]
[1749891624773,0.63112878,105190.0,105180.0,0.30030489]
[1749891624972,1.18575313,105190.0,105180.0,0.31805715]
[1749891625197,1.18575313,105190.0,105180.0,0.31805714]
[1749891625408,1.18575313,105190.0,105180.0,0.30030488]
[1749891625643,1.18575313,105190.0,105180.0,0.31806849]
[1749891625857,1.18575313,105190.0,105180.0,0.31807261]
[1749891626033,1.18575313,105190.0,105180.0,0.300309]
[1749891626230,1.18575313,105190.0,105180.0,0.29080263]
[1749891626426,1.18575313,105190.0,105180.0,0.30856744]
[1749891626626,1.18575313,105190.0,105180.0,0.30856745]
[1749891626896,1.18575313,105190.0,105180.0,0.29080263]
[1749891627111,1.18575313,105190.0,105180.0,0.30856745]
[1749891627356,1.18575313,105190.0,105180.0,0.2638769]
[1749891627357,1.16674056,105190.0,105180.0,0.2638769]
[1749891627564,1.16674056,105190.0,105180.0,0.28004603]
[1749891627780,1.16674056,105190.0,105180.0,0.28289146]
[1749891627984,1.16674056,105190.0,105180.0,0.28955326]
[1749891628189,1.16674056,105190.0,105180.0,0.28955324]
[1749891628400,1.16674056,105190.0,105180.0,0.27178783]
[1749891628614,1.16674056,105190.0,105180.0,0.28955101]
[1749891629083,1.16674056,105190.0,105180.0,0.28288982]
[1749891629290,1.16674056,105190.0,105180.0,0.27178796]
[1749891629503,1.16674056,105190.0,105180.0,0.28004487]
[1749891629713,1.16674056,105190.0,105180.0,0.28955245]
[1749891629921,1.16674056,105190.0,105180.0,0.28955123]
[1749891630129,1.16674056,105190.0,105180.0,0.2800439]
[1749891630569,1.16674056,105190.0,105180.0,0.28004399]
[1749891630788,1.16674056,105190.0,105180.0,0.26228079]
[1749891630995,1.16674056,105190.0,105180.0,0.28004413]
[1749891631206,1.15723405,105190.0,105180.0,0.25561959]
[1749891631424,1.15723405,105190.0,105180.0,0.28004521]
[1749891632046,1.15723405,105190.0,105180.0,0.28955263]
[1749891632255,1.15723405,105190.0,105180.0,0.2895516]
[1749891632462,1.15723405,105190.0,105180.0,0.28289035]
[1749891632715,1.15723405,105190.0,105180.0,0.2895516]
[1749891634455,1.15723405,105190.0,105180.0,0.28289035]
[1749891634664,1.15723405,105190.0,105180.0,0.27178826]
[1749891634870,1.15723405,105190.0,105180.0,0.2895516]
[1749891635076,1.15723405,105190.0,105180.0,0.26512701]
[1749891635279,1.15723405,105190.0,105180.0,0.28289057]
[1749891635705,1.15723405,105190.0,105180.0,0.28289084]
[1749891635931,1.15723405,105190.0,105180.0,0.28289065]
[1749891636143,1.15723405,105190.0,105180.0,0.28955201]
[1749891636374,1.15723405,105190.0,105180.0,0.28955205]
[1749891636612,1.15723405,105190.0,105180.0,0.28955223]
[1749891636825,1.15723405,105190.0,105180.0,0.28955226]
[1749891637053,1.15723405,105190.0,105180.0,0.27178844]
[1749891637486,1.15723405,105190.0,105180.0,0.28955226]
[1749891638150,1.15723405,105190.0,105180.0,0.27178844]
[1749891638589,1.15723405,105190.0,105180.0,0.2895524]
[1749891639028,1.15723405,105190.0,105180.0,0.28129585]
[1749891639242,1.15723405,105190.0,105180.0,0.29906004]
[1749891639461,1.15723405,105190.0,105180.0,0.2990605]
[1749891639683,1.15723405,105190.0,105180.0,0.281296]
[1749891639906,1.15723405,105190.0,105180.0,0.28129629]
[1749891640383,1.15723405,105190.0,105180.0,0.29906169]
[1749891640591,1.15723405,105190.0,105180.0,0.29239954]
[1749891641016,1.15723405,105190.0,105180.0,0.29906202]
[1749891641230,1.15723405,105190.0,105180.0,0.29239986]
[1749891641473,1.15723405,105190.0,105180.0,0.29906201]
[1749891641690,1.15723405,105190.0,105180.0,0.29906207]
[1749891642544,1.15723405,105190.0,105180.0,0.29906201]
[1749891643016,1.15723405,105190.0,105180.0,0.29906285]
[1749891643223,1.15723405,105190.0,105180.0,0.29240056]
[1749891643432,1.15723405,105190.0,105180.0,0.29906294]
[1749891643641,1.15723405,105190.0,105180.0,0.29906249]
[1749891643852,1.15723405,105190.0,105180.0,0.28129655]
[1749891644076,1.15723405,105190.0,105180.0,0.29906239]
[1749891644337,1.31059405,105190.0,105180.0,0.29906256]
[1749891644765,1.31059405,105190.0,105180.0,0.29906278]
[1749891644984,1.31059405,105190.0,105180.0,0.27463434]
[1749891645414,1.31059405,105190.0,105180.0,0.29240065]
[1749891645631,1.31059405,105190.0,105180.0,0.29906304]
[1749891646060,1.31059405,105190.0,105180.0,0.29906308]
[1749891646272,1.31059405,105190.0,105180.0,0.2924007]
[1749891646481,1.31059405,105190.0,105180.0,0.29906308]
[1749891646819,1.31059405,105190.0,105180.0,0.28129672]
[1749891647026,1.31059405,105190.0,105180.0,0.2924006]
[1749891647242,1.31059405,105190.0,105180.0,0.28129667]
[1749891647443,1.31059405,105190.0,105180.0,0.27463434]
[1749891647844,1.31059405,105190.0,105180.0,0.2990637]
[1749891648058,1.31059405,105190.0,105180.0,0.29240305]
[1749891648257,1.31059405,105190.0,105180.0,0.2990674]
[1749891648512,1.31059405,105190.0,105180.0,0.2924041]
[1749891648717,1.31059405,105190.0,105180.0,0.29240441]
[1749891648920,1.31059405,105190.0,105180.0,0.27463434]
[1749891649333,1.31059405,105190.0,105180.0,0.28129812]
[1749891649509,1.31059405,105190.0,105180.0,0.29080535]
[1749891649710,1.31059405,105190.0,105180.0,0.30191152]
[1749891649918,1.31059405,105190.0,105180.0,0.30857505]
[1749891650154,1.31059405,105190.0,105180.0,0.29080509]
[1749891650312,1.31059405,105190.0,105180.0,0.30031223]
[1749891650514,1.31059405,105190.0,105180.0,0.29080501]
[1749891650720,1.31059405,105190.0,105180.0,0.30191075]
[1749891650998,1.31059405,105190.0,105180.0,0.29080482]
[1749891651227,1.31059405,105190.0,105180.0,0.28414157]
[1749891651601,1.31059405,105190.0,105180.0,0.30857228]
[1749891651796,1.31059405,105190.0,105180.0,0.30857288]
[1749891652246,1.31059405,105190.0,105180.0,0.3019098]
[1749891652453,1.31059405,105190.0,105180.0,0.30857288]
[1749891652924,1.31059405,105190.0,105180.0,0.3019098]
[1749891653145,1.31059405,105190.0,105180.0,0.30857288]
[1749891653957,1.31059405,105190.0,105180.0,0.3019098]
[1749891654170,0.5753438,105190.0,105180.0,0.31807993]
[1749891654310,1.32960635,105190.0,105180.0,0.30857288]
[1749891654916,1.32960635,105190.0,105180.0,0.31808002]
[1749891655360,1.32960635,105190.0,105180.0,0.30031179]
[1749891655551,1.32960635,105190.0,105180.0,0.31808002]
[1749891657045,1.32960635,105190.0,105180.0,0.30857288]
[1749891657465,1.32960635,105190.0,105180.0,0.3019098]
[1749891657609,1.32960635,105190.0,105180.0,0.30857288]
[1749891658056,1.32960635,105190.0,105180.0,0.3019098]
[1749891658289,1.32960635,105190.0,105180.0,0.27179009]
[1749891658467,1.32960635,105190.0,105180.0,0.27463434]
[1749891658667,1.32960635,105190.0,105180.0,0.28129751]
[1749891658873,1.32960635,105190.0,105180.0,0.29906609]
[1749891659568,1.32960635,105190.0,105180.0,0.28129754]
[1749891659721,1.32960635,105190.0,105180.0,0.29906608]
[1749891659926,1.32960635,105190.0,105180.0,0.29906545]
[1749891660123,1.32960635,105190.0,105180.0,0.29906548]
[1749891660323,1.31059396,105190.0,105180.0,0.26228269]
[1749891660591,1.31059396,105190.0,105180.0,0.26228292]
[1749891660766,1.31059396,105190.0,105180.0,0.27054407]
[1749891661013,1.31059396,105190.0,105180.0,0.27338825]
[1749891661210,1.31059396,105190.0,105180.0,0.25561959]
[1749891661382,1.31059396,105190.0,105180.0,0.26228283]
[1749891661615,1.31059396,105190.0,105180.0,0.25561959]
[1749891661817,1.31059396,105190.0,105180.0,0.28005151]
[1749891662686,1.30108745,105190.0,105180.0,0.270544]
[1749891662938,1.30108745,105190.0,105180.0,0.27338826]
[1749891663148,1.30108745,105190.0,105180.0,0.26228285]
[1749891663371,1.30108745,105190.0,105180.0,0.27054405]
[1749891663585,1.30108745,105190.0,105180.0,0.27054403]
[1749891663799,0.7464631,105190.0,105180.0,0.26388077]
[1749891664009,1.30108745,105190.0,105180.0,0.08039382]
[1749891664240,1.30108745,105190.0,105180.0,0.26388077]
[1749891664456,1.30108745,105190.0,105180.0,0.27054403]
[1749891664684,1.39723667,105190.0,105180.0,0.27054403]
[1749891665106,1.39723667,105190.0,105180.0,0.25277534]
[1749891665318,0.84261232,105190.0,105180.0,0.26388077]
[1749891665551,1.39723667,105190.0,105180.0,0.27054403]
[1749891665979,1.39723667,105190.0,105180.0,0.24611208]
[1749891666198,1.39723667,105190.0,105180.0,0.27054403]
[1749891666424,1.39723667,105190.0,105180.0,0.25277534]
[1749891666645,1.39723667,105190.0,105180.0,0.27054256]
[1749891666918,0.7464631,105190.0,105180.0,0.28004612]
[1749891667137,1.30108745,105190.0,105180.0,0.28004612]
[1749891667312,1.30108745,105190.0,105180.0,0.28004609]
[1749891667562,1.30108745,105190.0,105180.0,0.28004608]
[1749891667772,1.30104744,105190.0,105180.0,0.28004608]
[1749891668196,1.30104744,105190.0,105180.0,0.27178878]
[1749891668378,1.30104744,105190.0,105180.0,0.28129586]
[1749891668583,1.30104744,105190.0,105180.0,0.29905963]
[1749891669002,1.30104744,105190.0,105180.0,0.29239819]
[1749891669205,1.30104744,105190.0,105180.0,0.29905962]
[1749891669415,1.30104744,105190.0,105180.0,0.28955229]
[1749891670075,1.30104744,105190.0,105180.0,0.27178845]
[1749891670264,1.30104744,105190.0,105180.0,0.28004489]
[1749891670481,1.30104744,105190.0,105180.0,0.28289087]
[1749891670686,1.30104744,105190.0,105180.0,0.28955231]
[1749891670904,1.30104744,105190.0,105180.0,0.28289087]
[1749891671109,1.30104744,105190.0,105180.0,0.28955231]
[1749891671227,1.31055395,105190.0,105180.0,0.30856687]
[1749891671599,1.31055395,105190.0,105180.0,0.26512701]
[1749891671845,1.31055395,105190.0,105180.0,0.29905964]
[1749891672459,1.31055395,105190.0,105180.0,0.28129578]
[1749891672603,1.31055395,105190.0,105180.0,0.28955231]
[1749891672809,1.31055395,105190.0,105180.0,0.28289087]
[1749891673046,1.31055395,105190.0,105180.0,0.2923982]
[1749891673260,1.31055395,105190.0,105180.0,0.29905964]
[1749891673409,1.31055395,105190.0,105180.0,0.28955231]
[1749891673614,1.31055395,105190.0,105180.0,0.28289085]
[1749891673816,1.31055395,105190.0,105180.0,0.28955229]
[1749891674225,1.31055395,105190.0,105180.0,0.28004487]
[1749891674928,1.31055395,105190.0,105180.0,0.28004437]
[1749891675153,1.31055395,105190.0,105180.0,0.28955046]
[1749891675906,1.31055395,105190.0,105180.0,0.27178795]
[1749891676253,1.31055395,105190.0,105180.0,0.28288952]
[1749891676434,1.31055395,105190.0,105180.0,0.28955046]
[1749891677048,1.31055395,105190.0,105180.0,0.28288952]
[1749891677251,1.31055395,105190.0,105180.0,0.28955046]
[1749891677466,1.31055395,105190.0,105180.0,0.28288952]
[1749891677666,1.31055395,105190.0,105180.0,0.28955046]
[1749891678362,1.31055395,105190.0,105180.0,0.28288952]
[1749891678572,1.31055395,105190.0,105180.0,0.2895505]
[1749891679015,1.31055395,105190.0,105180.0,0.28955068]
[1749891679221,1.31055395,105190.0,105180.0,0.29905801]
[1749891679457,1.31055395,105190.0,105180.0,0.29905802]
[1749891679917,0.7559296,105190.0,105180.0,0.29905803]
[1749891680130,1.31055395,105190.0,105180.0,0.27463434]
[1749891680351,1.31055395,105190.0,105180.0,0.29905803]
[1749891680548,1.31055395,105190.0,105180.0,0.29239702]
[1749891680926,1.31055395,105190.0,105180.0,0.27463434]
[1749891681286,1.31055395,105190.0,105180.0,0.29239659]
[1749891681518,1.31055395,105190.0,105180.0,0.29239626]
[1749891681743,1.32006019,105190.0,105180.0,0.29080227]
[1749891681987,1.32006019,105190.0,105180.0,0.30856418]
[1749891682193,1.32006019,105190.0,105180.0,0.30190347]
[1749891682944,1.32006019,105190.0,105180.0,0.30856311]
[1749891683140,1.16670019,105190.0,105180.0,0.29080206]
[1749891683340,1.16670019,105190.0,105180.0,0.30190289]
[1749891683551,1.16670019,105190.0,105180.0,0.30856329]
[1749891683777,1.16670019,105190.0,105180.0,0.30190252]
[1749891684145,1.16670019,105190.0,105180.0,0.31806985]
[1749891684690,1.16670019,105190.0,105180.0,0.31140954]
[1749891684897,1.16670019,105190.0,105180.0,0.31806985]
[1749891685280,1.16670019,105190.0,105180.0,0.30030902]
[1749891685281,0.61207584,105190.0,105180.0,0.30030902]
[1749891685487,1.16670019,105190.0,105180.0,0.31806985]
[1749891685705,0.8267402,105190.0,105180.0,0.31806985]
[1749891685910,0.8267402,105190.0,105180.0,0.30030902]
[1749891686254,0.8267402,105190.0,105180.0,0.30856271]
[1749891686462,0.8267402,105190.0,105180.0,0.3019024]
[1749891686669,0.8267402,105190.0,105180.0,0.30856271]
[1749891686876,0.8267402,105190.0,105180.0,0.30190233]
[1749891687107,0.8267402,105190.0,105180.0,0.30190198]
[1749891687329,0.8267402,105190.0,105180.0,0.30190155]
[1749891687533,0.8267402,105190.0,105180.0,0.30856143]
[1749891687746,0.8267402,105190.0,105180.0,0.30856146]
[1749891687950,0.8267402,105190.0,105180.0,0.30856153]
[1749891688181,0.8267402,105190.0,105180.0,0.30856152]
[1749891688392,1.1667402,105190.0,105180.0,0.28414157]
[1749891688601,1.1667402,105190.0,105180.0,0.30856141]
[1749891689009,1.1667402,105190.0,105180.0,0.30856146]
[1749891689217,1.3201002,105190.0,105180.0,0.31806862]
[1749891689442,1.3201002,105190.0,105180.0,0.31140865]
[1749891689645,1.3201002,105190.0,105180.0,0.31806863]
[1749891690123,1.3201002,105190.0,105180.0,0.3180645]
[1749891690309,1.3201002,105190.0,105180.0,0.29364862]
[1749891690524,1.12996806,105190.0,105180.0,0.30855698]
[1749891690755,1.3201002,105190.0,105180.0,0.30855699]
[1749891690937,1.3201002,105190.0,105180.0,0.30855676]
[1749891691141,1.3201002,105190.0,105180.0,0.30855665]
[1749891691395,1.14898054,105190.0,105180.0,0.31140476]
[1749891691615,1.33911268,105190.0,105180.0,0.29079968]
[1749891691839,1.33911268,105190.0,105180.0,0.31521411]
[1749891692051,1.33911268,105190.0,105180.0,0.31521405]
[1749891692262,1.33911268,105190.0,105180.0,0.27969627]
[1749891692464,1.33911268,105190.0,105180.0,0.29745292]
[1749891692668,1.33911268,105190.0,105180.0,0.29745295]
[1749891693401,1.33911268,105190.0,105180.0,0.3069642]
[1749891693812,1.33911268,105190.0,105180.0,0.28920468]
[1749891694236,1.33911268,105190.0,105180.0,0.28254486]
[1749891694459,1.33911268,105190.0,105180.0,0.29745715]
[1749891694672,1.32960671,105190.0,105180.0,0.26068326]
[1749891694887,1.17624671,105190.0,105180.0,0.26893545]
[1749891695099,1.17624671,105190.0,105180.0,0.27844278]
[1749891695311,1.17624671,105190.0,105180.0,0.27178296]
[1749891695521,0.62162236,105190.0,105180.0,0.27844278]
[1749891695733,1.17624671,105190.0,105180.0,0.24166867]
[1749891695948,1.17624671,105190.0,105180.0,0.26068354]
[1749891696168,1.17624671,105190.0,105180.0,0.27844419]
[1749891696388,1.17624671,105190.0,105180.0,0.27844414]
[1749891696629,1.17624671,105190.0,105180.0,0.27178395]
[1749891696844,1.17624671,105190.0,105180.0,0.26068534]
[1749891697105,1.16674047,105190.0,105180.0,0.26894304]
[1749891697310,1.16674047,105190.0,105180.0,0.27845037]
[1749891697540,1.16674047,105190.0,105180.0,0.27845035]
[1749891697769,1.31059405,105190.0,105180.0,0.06928539]
[1749891697995,1.31059405,105190.0,105180.0,0.23500869]
[1749891698234,1.31059405,105190.0,105180.0,0.26894322]
[1749891698638,1.31059405,105190.0,105180.0,0.25117849]
[1749891698849,1.31059405,105190.0,105180.0,0.27845204]
[1749891699069,1.40674327,105190.0,105180.0,0.27844776]
[1749891699280,1.40674327,105190.0,105180.0,0.27844606]
[1749891699516,1.40674327,105190.0,105180.0,0.26068529]
[1749891699732,1.40674327,105190.0,105180.0,0.27844349]
[1749891699939,1.39723667,105190.0,105180.0,0.26893608]
[1749891700150,1.30108745,105190.0,105180.0,0.26893609]
[1749891700379,1.30108745,105190.0,105180.0,0.26893608]
[1749891700612,1.30108745,105190.0,105180.0,0.26893607]
[1749891700831,1.30108745,105190.0,105180.0,0.26893609]
[1749891701069,1.30108745,105190.0,105180.0,0.25117617]
[1749891701309,1.30108745,105190.0,105180.0,0.26893609]
[1749891701512,1.30108745,105190.0,105180.0,0.26893607]
[1749891701729,1.30108745,105190.0,105180.0,0.26893609]
[1749891701944,1.30108745,105190.0,105180.0,0.26227612]
[1749891702193,1.30108745,105190.0,105180.0,0.26893609]
[1749891702645,1.30108745,105190.0,105180.0,0.25117617]
[1749891702852,1.30108745,105190.0,105180.0,0.26227612]
[1749891703054,1.30108745,105190.0,105180.0,0.25117617]
[1749891703261,1.30108745,105190.0,105180.0,0.26227612]
[1749891703501,1.39723667,105190.0,105180.0,0.26893618]
[1749891703708,1.39723667,105190.0,105180.0,0.26893604]
[1749891703922,1.30108745,105190.0,105180.0,0.2689353]
[1749891704118,1.30108745,105190.0,105180.0,0.26227555]
[1749891704330,1.30108745,105190.0,105180.0,0.26893529]
[1749891704533,1.30108745,105190.0,105180.0,0.26893478]
[1749891704768,1.30108745,105190.0,105180.0,0.25117549]
[1749891704972,1.30108745,105190.0,105180.0,0.06927619]
[1749891705221,1.30109591,105190.0,105180.0,0.25942664]
[1749891706227,1.30109591,105190.0,105180.0,0.24166813]
[1749891706581,1.30109591,105190.0,105180.0,0.25942665]
[1749891706771,1.30109591,105190.0,105180.0,0.24166813]
[1749891706967,1.30109591,105190.0,105180.0,0.04485848]
[1749891707188,1.30109591,105190.0,105180.0,0.2527672]
[1749891707378,1.30109591,105190.0,105180.0,0.23500869]
[1749891707629,1.30109591,105190.0,105180.0,0.25942664]
[1749891707834,1.31165099,105190.0,105180.0,0.06927633]
[1749891708038,1.30109591,105190.0,105180.0,0.25942654]
[1749891708247,1.30109591,105190.0,105180.0,0.2416681]
[1749891708453,1.30109591,105190.0,105180.0,0.25942651]
[1749891708642,1.30109591,105190.0,105180.0,0.25942641]
[1749891708902,1.30109591,105190.0,105180.0,0.25276701]
[1749891709114,1.30109591,105190.0,105180.0,0.25942638]
[1749891709333,1.30109591,105190.0,105180.0,0.0626168]
[1749891709539,1.30109591,105190.0,105180.0,0.06927617]
[1749891710288,1.30109591,105190.0,105180.0,0.06927596]
[1749891710704,1.30109591,105190.0,105180.0,0.06927589]
[1749891710911,1.30109591,105190.0,105180.0,0.0626166]
[1749891711113,1.30109591,105190.0,105180.0,0.06927589]
[1749891711528,1.30109591,105190.0,105180.0,0.0626166]
[1749891711730,1.30109591,105190.0,105180.0,0.04485848]
[1749891711958,1.30109591,105190.0,105180.0,0.06927589]
[1749891712200,1.30109591,105190.0,105180.0,0.06261777]
[1749891712442,1.30109591,105190.0,105180.0,0.05151821]
[1749891713107,1.30109591,105190.0,105180.0,0.25942376]
[1749891713323,1.30109591,105190.0,105180.0,0.06927335]
[1749891713539,1.30109591,105190.0,105180.0,0.25276383]
[1749891713775,1.30109591,105190.0,105180.0,0.05151821]
[1749891714022,1.14773591,105190.0,105180.0,0.0692725]
[1749891714277,1.14773591,105190.0,105180.0,0.06261277]
[1749891714523,1.14773591,105190.0,105180.0,0.0692725]
[1749891714770,1.14773591,105190.0,105180.0,0.06927186]
[1749891715013,1.14773591,105190.0,105180.0,0.06261191]
[1749891715504,1.14773591,105190.0,105180.0,0.06927112]
[1749891715743,1.14773591,105190.0,105180.0,0.05151821]
[1749891715982,1.14773591,105190.0,105180.0,0.06927106]
[1749891717131,1.14773591,105190.0,105180.0,0.05151821]
[1749891717339,1.14773591,105190.0,105180.0,0.06927114]
[1749891717574,1.14773591,105190.0,105180.0,0.06926956]
[1749891717749,1.14773591,105190.0,105180.0,0.06926952]
[1749891717909,1.14773591,105190.0,105180.0,0.06926856]
[1749891718115,1.30109591,105190.0,105180.0,0.06926856]
[1749891718295,1.99670724,105190.0,105180.0,0.03106947]